Cogmind - Beta 13 @@@ ROGUE MODE // 2024.03.14 @ 19:24:16 Player: Fuma Result: Destroyed by X-57 Shotgunner with Shotgun Performance ------------- Evolutions (3) 1500 Regions Visited (7) 1400 Robots Destroyed (33) 165 Value Destroyed (691) 691 Prototype IDs (28) 560 Alien Tech Used (0) 0 Bonus (825) 825 TOTAL SCORE: 5141 Bonus ------- Follower Combat Kills 25 Entered DSFs 500 Aligned with FarCom 300 Cogmind --------- Core Integrity 0/700 Matter 5/300 Energy 99/100 System Corruption 0% Temperature Cool (0) Movement Core (50) Location -7/DSF Parts ------- > --- POWER (1) -------- (None) > --- PROPULSION (4) --- (None) > --- UTILITY (5) ------ Visual Processing Unit Improved Signal Interpreter > --- WEAPON (3) ------- (None) > --- INVENTORY (5) ---- Ion Engine High-capacity Storage Unit Beam Rifle Rocket Launcher Datajack Peak State ------------ > --- POWER ------------ Nuclear Core > --- PROPULSION ------- Wheel Armored Wheel > --- UTILITY ---------- High-capacity Storage Unit Visual Processing Unit Improved Signal Interpreter Advanced Targeting Computer Field Recycling Unit > --- WEAPON ----------- Particle Cannon Enhanced Autogun Flak Cannon > --- INVENTORY -------- Ion Engine Ion Engine Ion Engine Improved Ion Engine Light Deuterium Engine High-capacity Storage Unit Sensor Array Hacking Suite EM Pulse Gun Beam Rifle EM Pulse Cannon Heavy Particle Cannon Ion Cannon Minigun High-powered Shotgun Flak Cannon Rocket Launcher Missile Launcher Datajack [Rating: 30] Favorites ----------- Power Light Nuclear Core Engine Ion Engine Power Core Light Nuclear Core Propulsion Compact Wheel Wheel Compact Wheel Utility Improved Signal Interpreter Device Sensor Array Storage High-capacity Storage Unit Processor Improved Signal Interpreter Hackware Hacking Suite Weapon EM Pulse Gun Energy Gun EM Pulse Gun Energy Cannon Particle Cannon Ballistic Gun High-powered Shotgun Ballistic Cannon Flak Cannon Launcher Missile Launcher Build | -11 -10 -10 -10 -9 -8 -7 -7 ------- Run | Yrd Mat Min Exi Min Mat Fac DSF Slots Evolved 6 | . . . . . 4 2 . Power . | . . . . . . . . Propulsion 2 | . . . . . 1 1 . Utility 3 | . . . . . 2 1 . Weapon 1 | . . . . . 1 . . Parts Attached 53 | 5 12 3 . 7 8 4 14 Power 6 | 1 2 1 . . . 1 1 Engine 4 | 1 2 . . . . . 1 Core 2 | . . 1 . . . 1 . Reactor . | . . . . . . . . Propulsion 10 | 2 3 . . 3 2 . . Treads . | . . . . . . . . Leg . | . . . . . . . . Wheel 10 | 2 3 . . 3 2 . . Hover . | . . . . . . . . Flight . | . . . . . . . . Utility 17 | . 2 2 . 1 4 3 5 Device 9 | . 1 . . . 1 2 5 Storage 3 | . . 1 . 1 1 . . Processor 4 | . 1 1 . . 2 . . Hackware 1 | . . . . . . 1 . Protection . | . . . . . . . . Artifact . | . . . . . . . . Weapon 20 | 2 5 . . 3 2 . 8 Energy Gun 5 | . 3 . . 2 . . . Energy Cannon 2 | . . . . . 1 . 1 Ballistic Gun 8 | 2 2 . . 1 1 . 2 Ballistic Cannon 3 | . . . . . . . 3 Launcher 2 | . . . . . . . 2 Special Weapon . | . . . . . . . . Impact Weapon . | . . . . . . . . Slashing Weapon . | . . . . . . . . Piercing Weapon . | . . . . . . . . Special Melee Weapon . | . . . . . . . . Unidentified Prototypes 1 | . . . . . . . 1 Parts Lost 18 | . 1 . . 2 2 . 13 Power 2 | . . . . . . . 2 Propulsion 6 | . 1 . . 1 2 . 2 Utility 2 | . . . . . . . 2 Weapon 8 | . . . . 1 . . 7 Highest Loss Streak 13 | . 1 . . 2 1 . 13 To Critical Strikes . | . . . . . . . . Average Slot Usage (%) 95 | . 96 100 100 93 97 84 75 Engine 4 | . 14 12 . . . . . Core 7 | . . 1 14 14 9 7 6 Wheel 24 | . 26 28 28 22 25 15 11 Device 5 | . 13 10 . . 3 4 6 Storage 7 | . . 3 14 14 9 7 6 Processor 17 | . 12 14 14 14 23 23 21 Energy Gun 13 | . 16 28 28 15 . . . Energy Cannon 2 | . . . . . 8 7 5 Ballistic Gun 9 | . 11 . . 12 17 15 6 Naked Turns . | . . . . . . . . Heaviest Build 68 | 7 11 19 19 50 56 65 68 Greatest Support 38 | 20 32 32 32 32 38 22 22 Greatest Overweight (x) 17 | . . . . 1 2 2 17 Average Overweight (x) . | . . . . . 1 2 2 Largest Inventory Capacity 20 | 5 5 10 10 20 20 20 20 Average Capacity 12 | 5 5 6 10 10 20 20 19 Most Carried 20 | 3 5 10 10 12 17 19 20 Average Carried 9 | . 4 5 10 9 12 17 19 Final Capacity 20 | 5 5 10 10 20 20 20 5 Final Carried 19 | 3 5 10 10 12 17 19 5 Class Distribution -------------------- 63% | Mutant 36% | Skirmisher Dominant Class ---------------- Mutant | -10/Materials Mutant | -10/Mines Mutant | -10/Exiles Mutant | -9/Mines Skirmisher | -8/Materials Skirmisher | -7/Factory Skirmisher | -7/DSF Resources | -11 -10 -10 -10 -9 -8 -7 -7 ----------- Run | Yrd Mat Min Exi Min Mat Fac DSF Matter Collected 852 | 280 262 68 . 129 113 . . Remotely . | . . . . . . . . Salvage Created 817 | 34 337 33 . 229 132 . 52 Parts 67 | 2 34 2 . 19 9 . 1 Haulers Intercepted . | . . . . . . . . Recyclers Shooed . | . . . . . . . . Parts Field Recycled 15 | . . . . . . 4 11 Retrieved Matter 100 | . . . . . . 28 72 Parts Self-Destructed . | . . . . . . . . Prevented . | . . . . . . . . Kills | -11 -10 -10 -10 -9 -8 -7 -7 ------- Run | Yrd Mat Min Exi Min Mat Fac DSF Combat Hostiles Destroyed 26 | 1 10 1 . 9 4 . 1 Guns 23 | 1 10 1 . 8 3 . . Cannons 2 | . . . . . 1 . 1 AOE 1 | . . . . 1 . . . Classes Destroyed 8 | 1 3 . . 2 1 . 1 Tunneler 1 | . . . . 1 . . . Operator 3 | . 2 . . . 1 . . Watcher 3 | . 2 . . . 1 . . Swarmer 16 | . 6 . . 7 3 . . Grunt 7 | 1 4 1 . 1 . . . Brawler 1 | . . . . 1 . . . Sentry 1 | . . . . . 1 . . Specialist 1 | . . . . . . . 1 Best Kill Streak 5 | 1 4 1 . 5 3 . 1 Combat Bots Only 4 | 1 3 1 . 4 3 . 1 Max Kills in Single Turn 2 | 1 2 1 . 2 1 . 1 Gunslinging 1 | . 1 . . 1 . . . Exploded 1 | . . . . 1 . . . Melee . | . . . . . . . . Uniques/NPCs Destroyed . | . . . . . . . . Combat | -11 -10 -10 -10 -9 -8 -7 -7 -------- Run | Yrd Mat Min Exi Min Mat Fac DSF Hostile Shots Fired 316 | 6 30 2 . 21 27 . 230 Missed 121 | 2 10 2 . 9 7 . 91 Damage Taken 2711 | 43 192 . . 167 329 . 1980 Core 824 | . 43 . . 6 73 . 702 Absorbed by Shields . | . . . . . . . . Regen/Repaired (Parts) 19 | . 19 . . . . . . Core Remaining (%) 88 | 100 . . . 80 86 . . Volleys Fired 80 | 5 31 1 . 15 13 . 15 Largest 3 | 2 2 2 . 2 3 . 3 Hottest 137 | 40 105 80 . 80 116 . 137 Shots Fired 176 | 10 60 3 . 27 39 . 37 Gun 139 | 10 60 3 . 27 26 . 13 Cannon 32 | . . . . . 13 . 19 Launcher 5 | . . . . . . . 5 Special . | . . . . . . . . Kinetic 114 | 10 48 . . 6 26 . 24 Thermal 26 | . 5 . . . 13 . 8 Explosive 5 | . . . . . . . 5 Electromagnetic 31 | . 7 3 . 21 . . . Robot Hit Streak 11 | 7 11 4 . 4 7 . 10 Robot Miss Streak 8 | 3 5 . . 6 8 . 5 Penetration Max . | . . . . . . . . Secondary Targets 4 | . 1 1 . 2 . . . Max Gunslinging Chain 1 | . 1 1 . 1 . . . Shots Hit Robots 105 | 7 31 3 . 18 17 . 29 Core Hits 63 | 2 19 2 . 12 9 . 19 Critical Kills 1 | . . . . 1 . . . Critical Parts Destroyed . | . . . . . . . . Critical Strikes 1 | . . . . 1 . . . Destroy 1 | . . . . 1 . . . Melee Attacks . | . . . . . . . . Impact . | . . . . . . . . Slashing . | . . . . . . . . Piercing . | . . . . . . . . Sneak Attacks . | . . . . . . . . Combat Hostiles . | . . . . . . . . Follow-up Attacks . | . . . . . . . . Damage Inflicted 2103 | 84 440 26 . 394 354 . 805 Guns 1205 | 84 436 26 . 203 253 . 203 Cannons 545 | . . . . . 101 . 444 Explosions 349 | . . . . 191 . . 158 Melee . | . . . . . . . . Ramming 4 | . 4 . . . . . . Kinetic 1278 | 84 350 . . 66 253 . 525 Thermal 458 | . 44 . . 191 101 . 122 Explosive 158 | . . . . . . . 158 Electromagnetic 205 | . 42 26 . 137 . . . Impact . | . . . . . . . . Slashing . | . . . . . . . . Piercing . | . . . . . . . . Highest Corruption 10 | . 2 2 2 10 . . . Average Corruption 3 | . 2 2 2 9 . . . Corruption Purged . | . . . . . . . . Corruption Blocked . | . . . . . . . . Effects 42 | . 5 9 10 18 . . . Message Errors 8 | . 2 1 3 2 . . . Matter Fused 16 | . 2 4 3 7 . . . Heat Flow Errors 1 | . . . . 1 . . . Energy Discharges 5 | . . 2 1 2 . . . Parts Fused 1 | . . 1 . . . . . Data Loss (minor) 6 | . . . 2 4 . . . Data Loss (major) 4 | . 1 . 1 2 . . . Misfires 1 | . . 1 . . . . . Overload Shots . | . . . . . . . . Overflow Damage . | . . . . . . . . Projectiles . | . . . . . . . . Explosions . | . . . . . . . . Melee . | . . . . . . . . Knockbacks 2 | . . . . . . . 2 Impact . | . . . . . . . . Kinetic 2 | . . . . . . . 2 Secondary . | . . . . . . . . Self-Inflicted Damage 54 | . 2 . . 19 . . 33 Shots 3 | . . . . 1 . . 2 Rammed 1 | . 1 . . . . . . Targets Rammed 1 | . 1 . . . . . . Kicked . | . . . . . . . . Crushed . | . . . . . . . . Highest Temperature 222 | 6 120 18 . 166 222 . 54 Average Temperature 59 | 6 38 12 . 60 81 . 18 Received Heat Transfer 471 | 24 57 . . 30 63 . 297 Siege Activations . | . . . . . . . . Robots Corrupted . | . . . . . . . . Combat Hostiles . | . . . . . . . . Parts Fried . | . . . . . . . . Impact Corruptions . | . . . . . . . . Robots Melted . | . . . . . . . . Combat Hostiles . | . . . . . . . . Parts Melted . | . . . . . . . . Heat Transferred 668 | . 111 . . 150 185 . 222 Parts Sabotaged . | . . . . . . . . Parts Stolen . | . . . . . . . . Parts Stripped . | . . . . . . . . Power Chain Reactions 1 | . . . . 1 . . . Alert | -11 -10 -10 -10 -9 -8 -7 -7 ------- Run | Yrd Mat Min Exi Min Mat Fac DSF Peak Influence 266 | 20 266 56 . 259 77 34 92 Initial 27 | . 13 . . . 22 27 23 Average 52 | 4 98 7 . 99 28 28 27 Maximum Alert Level 1 | . 1 . . 1 . . . Low Security (%) 96 | 100 90 100 . 92 100 100 100 Level 1 3 | . 9 . . 7 . . . Level 2 . | . . . . . . . . Level 3 . | . . . . . . . . Level 4 . | . . . . . . . . Level 5 . | . . . . . . . . High Security . | . . . . . . . . Max Security . | . . . . . . . . Squads Dispatched 9 | . 1 1 . . 2 2 3 Investigation 3 | . . 1 . . 1 1 . Extermination 1 | . . . . . . 1 . Reinforcement 5 | . 1 . . . 1 . 3 Assault . | . . . . . . . . Garrison . | . . . . . . . . Intercept . | . . . . . . . . Searches Triggered . | . . . . . . . . Construction Impeded . | . . . . . . . . Haulers Reinforced . | . . . . . . . . Active Scanning Responses . | . . . . . . . . Cargo Convoy Interrupts . | . . . . . . . . Stealth | -11 -10 -10 -10 -9 -8 -7 -7 --------- Run | Yrd Mat Min Exi Min Mat Fac DSF Distress Signals 1 | . 1 . . . . . . Communications Jammed . | . . . . . . . . Distress Signals . | . . . . . . . . Times Spotted 54 | 1 20 3 . 10 11 . 9 Peak Tracking Total 7 | 1 4 3 . 4 4 1 7 Tactical Retreats 2 | . . . . 1 . . 1 Traps | -11 -10 -10 -10 -9 -8 -7 -7 ------- Run | Yrd Mat Min Exi Min Mat Fac DSF Traps Triggered 2 | . . . . . 1 . 1 Indirectly . | . . . . . . . . Trap Hack Attempts . | . . . . . . . . Triggered . | . . . . . . . . Disarmed . | . . . . . . . . Reprogrammed . | . . . . . . . . Reused . | . . . . . . . . Traps Extracted . | . . . . . . . . Installed . | . . . . . . . . Triggered . | . . . . . . . . Machines | -11 -10 -10 -10 -9 -8 -7 -7 ---------- Run | Yrd Mat Min Exi Min Mat Fac DSF Machines Disabled 3 | . . . . 2 . . 1 Max in Single Turn 2 | . . . . 2 . . 1 Machines Repaired . | . . . . . . . . Machines Dismantled . | . . . . . . . . Machines Sabotaged . | . . . . . . . . Overloaded Fab Kills . | . . . . . . . . Hacking | -11 -10 -10 -10 -9 -8 -7 -7 --------- Run | Yrd Mat Min Exi Min Mat Fac DSF Machines Accessed 18 | . 8 1 5 1 . 3 . Terminals 9 | . 5 . . 1 . 3 . Fabricators . | . . . . . . . . Repair Stations 1 | . 1 . . . . . . Recycling Units 2 | . 2 . . . . . . Scanalyzers . | . . . . . . . . Garrison Access . | . . . . . . . . Total Hacks 73 | . 14 1 50 2 . 6 . Successful 65 | . 10 1 50 1 . 3 . Failed 8 | . 4 . . 1 . 3 . Catastrophic 1 | . 1 . . . . . . Database Lockouts . | . . . . . . . . Manual 2 | . 1 . 1 . . . . Terminals 16 | . 8 . . 2 . 6 . Fabricators . | . . . . . . . . Repair Stations 4 | . 4 . . . . . . Recycling Units 2 | . 2 . . . . . . Scanalyzers . | . . . . . . . . Garrison Access . | . . . . . . . . Terminal Hacks 61 | . 6 1 50 1 . 3 . Record 52 | . 3 . 49 . . . . Part Schematic 1 | . . . . . . 1 . Prototype ID Bank 2 | . 2 . . . . . . Open Door 1 | . . 1 . . . . . Open DSF 1 | . . . . . . 1 . Repair Station Index 1 | . . . . . . 1 . Locate Traps 1 | . 1 . . . . . . Zone Layout 1 | . . . . 1 . . . Derelict Proto ID Bank 1 | . . . 1 . . . . Fabricator Hacks . | . . . . . . . . Repair Station Hacks 2 | . 2 . . . . . . Scan Component 1 | . 1 . . . . . . Repair 1 | . 1 . . . . . . Recycling Unit Hacks 2 | . 2 . . . . . . Report Inventory 2 | . 2 . . . . . . Scanalyzer . | . . . . . . . . Garrison Access Hacks . | . . . . . . . . Unauthorized Hacks . | . . . . . . . . Terminals . | . . . . . . . . Fabricators . | . . . . . . . . Repair Stations . | . . . . . . . . Recycling Units . | . . . . . . . . Scanalyzers . | . . . . . . . . Garrison Access . | . . . . . . . . Data Cores Recovered 2 | . 2 . . . . . . Used 2 | . 2 . . . . . . Hacking Detections 6 | . 3 . . 1 . 2 . Full Trace Events 2 | . 1 . . . . 1 . Feedback Events . | . . . . . . . . Feedback Blocked . | . . . . . . . . Robot Schematics Acquired . | . . . . . . . . Robots Built . | . . . . . . . . Authchips . | . . . . . . . . Time . | . . . . . . . . Total Robot Build Rating . | . . . . . . . . Part Schematics Acquired 1 | . . . . . . 1 . Parts Built . | . . . . . . . . Authchips . | . . . . . . . . Time . | . . . . . . . . Total Part Build Rating . | . . . . . . . . Parts Repaired 1 | . 1 . . . . . . Time 26 | . 26 . . . . . . Parts Recycled . | . . . . . . . . Recycled Matter . | . . . . . . . . Retrieved Matter . | . . . . . . . . Retrieved Components . | . . . . . . . . Parts Scanalyzed . | . . . . . . . . Part Schematics Acquired . | . . . . . . . . Parts Damaged . | . . . . . . . . Bothacking | -11 -10 -10 -10 -9 -8 -7 -7 ------------ Run | Yrd Mat Min Exi Min Mat Fac DSF Used RIF Installer . | . . . . . . . . Robots Hacked . | . . . . . . . . Non-combat . | . . . . . . . . Combat . | . . . . . . . . Robot Hacks Applied . | . . . . . . . . Relay Couplers Released . | . . . . . . . . Fabnet Peak Effective % . | . . . . . . . . Robots Rewired . | . . . . . . . . Allies Hacked . | . . . . . . . . Hacks Repelled . | . . . . . . . . Allies | -11 -10 -10 -10 -9 -8 -7 -7 -------- Run | Yrd Mat Min Exi Min Mat Fac DSF Total Allies 2 | . . 2 . . . . . Largest Group 2 | . . 2 2 . . . . Highest-Rated Group 41 | . . 41 41 . . . . Highest-Rated Ally 31 | . . 31 31 . . . . Total Orders . | . . . . . . . . Ally Attacks 2 | . . 2 . . . . . Total Damage 41 | . . 41 . . . . . Kills 1 | . . 1 . . . . . Allies Corrupted . | . . . . . . . . Allies Melted . | . . . . . . . . Intel | -11 -10 -10 -10 -9 -8 -7 -7 ------- Run | Yrd Mat Min Exi Min Mat Fac DSF Robot Analysis Total . | . . . . . . . . Derelict Logs Recovered 3 | . . 2 . 1 . . . Drone Launches . | . . . . . . . . Drone Recoveries . | . . . . . . . . Exploration | -11 -10 -10 -10 -9 -8 -7 -7 ------------- Run | Yrd Mat Min Exi Min Mat Fac DSF Turns Passed 4899 | 70 1023 596 860 578 1189 279 304 Spaces Moved 3560 | 62 855 566 860 482 368 231 136 Core 26 | 15 . . . . . . 11 Treads . | . . . . . . . . Legs . | . . . . . . . . Wheels 3534 | 47 855 566 860 482 368 231 125 Hover . | . . . . . . . . Flight . | . . . . . . . . Fastest Speed 50 | 50 80 100 100 90 98 115 50 Average Speed 100 | 72 94 100 100 99 107 115 121 Slowest Speed 900 | 80 100 100 100 115 115 115 900 Overloaded Moves . | . . . . . . . . Propulsion Burnouts . | . . . . . . . . Robots Hopped . | . . . . . . . . Cave-ins Triggered . | . . . . . . . . Exploration Rate (%) 56 | 6 96 98 95 77 26 9 42 Regions Visited 7 Branch Regions 3 Pre-discovered Areas 2 | . . . 1 1 . . . Known Exits Taken 6 | . 1 1 1 1 1 1 . Unknown Exits Taken 1 | 1 . . . . . . . Scrap Searched 5 | . . 3 . 2 . . . Spaces Dug 9 | . . . . . . . 9 Terrain Destroyed 60 | . . . . 20 . . 40 Melee . | . . . . . . . . Projectile . | . . . . . . . . AOE 60 | . . . . 20 . . 40 Terrain Rammed . | . . . . . . . . Walls Destroyed . | . . . . . . . . Machines Disabled . | . . . . . . . . Actions | -11 -10 -10 -10 -9 -8 -7 -7 --------- Run | Yrd Mat Min Exi Min Mat Fac DSF Total 4713 | 74 1014 595 860 550 1131 243 246 Wait 953 | . 92 13 1 40 730 5 72 Move 3553 | 61 854 565 859 481 367 230 136 Hop . | . . . . . . . . Pick Up 45 | 3 11 8 . 5 11 4 3 Fast Attach 17 | 5 6 2 . 1 1 . 2 Attach 13 | . 1 . . 1 4 1 6 Detach 5 | . 2 1 . . . . 2 Swap 23 | . 5 1 . 5 3 3 6 Drop 23 | . 11 4 . 2 2 . 4 Fire 80 | 5 31 1 . 15 13 . 15 Melee . | . . . . . . . . Ram 1 | . 1 . . . . . . Kick . | . . . . . . . . Crush . | . . . . . . . . Escape Stasis . | . . . . . . . . Rewire . | . . . . . . . . Trap . | . . . . . . . . Miscellaneous . | . . . . . . . . Route ------- -11/Scrapyard -10/Materials (discovered 5 exits: *Mat x3 / *Min x2) -10/Mines (discovered 3 exits: *Mat x2 / *Exi) -10/Exiles (discovered 2 exits: *Min x2) -9/Mines -8/Materials -7/Factory -7/DSF History --------- Turn | Location | Event 2 | -11/Scrapyard | Met Revision 17 41 | -11/Scrapyard | Discovered new exit (range 8) 71 | -11/Scrapyard | Entered Materials 105 | -10/Materials | Discovered new exit (range 7) 311 | -10/Materials | Discovered new exit (range 5) 314 | -10/Materials | Build established: Mutant 314 | -10/Materials | Identified exit to Materials 498 | -10/Materials | Discovered exit to Materials (range 8) 512 | -10/Materials | Discovered new exit (range 14) 556 | -10/Materials | Identified exit to Mines 580 | -10/Materials | Discovered exit to Materials (range 5) 928 | -10/Materials | Repaired Ion Engine 1094 | -10/Materials | Entered Mines 1185 | -10/Mines | Discovered exit to Materials (range 6) 1278 | -10/Mines | Discovered exit to Materials (range 13) 1291 | -10/Mines | Learned Materials emergency access door positions 1357 | -10/Mines | Learned Materials emergency access door positions 1366 | -10/Mines | Received a Rocket Launcher from a helpful Derelict 1581 | -10/Mines | Deemed a non-threat by the Exiles lab entrance 1582 | -10/Mines | Discovered new exit (range 5) 1586 | -10/Mines | Identified exit to Exiles 1608 | -10/Mines | Met a Derelict shopkeep closing up shop 1690 | -10/Mines | Entered Exiles 1690 | -10/Exiles | Accompanied by 2 allies 1708 | -10/Exiles | Discovered new exit (range 15) 1720 | -10/Exiles | Led the pair of lost Derelicts to a safe place 1721 | -10/Exiles | Identified exit to Mines 1743 | -10/Exiles | Met 8R-AWN 1775 | -10/Exiles | Met EX-HEX 1824 | -10/Exiles | Met EX-DEC 1884 | -10/Exiles | Learned location of Zion (-7) 1913 | -10/Exiles | Discovered exit to Mines (range 14) 2000 | -10/Exiles | Met EX-BIN 2220 | -10/Exiles | Aligned with FarCom system 2221 | -10/Exiles | Given EX-Vault access code 2251 | -10/Exiles | Opened EX-Vault 2285 | -10/Exiles | Warned to stay clear of 0b10 Research branches 2360 | -10/Exiles | Visited The Gauntlet 2550 | -10/Exiles | Entered Mines 2607 | -9/Mines | System corruption reached 10% 3030 | -9/Mines | A weapon hastily lodged in a ceiling crevice suddenly fell to the ground 3062 | -9/Mines | Discovered new exit (range 11) 3070 | -9/Mines | Identified exit to Materials 3128 | -9/Mines | Entered Materials 3128 | -8/Materials | Evolved 4 slots: Propulsion x1, Utility x2, Weapon x1 3374 | -8/Materials | Build established: Skirmisher 4306 | -8/Materials | Discovered new exit (range 10) 4315 | -8/Materials | Identified exit to Factory 4317 | -8/Materials | Entered Factory 4317 | -7/Factory | Evolved 2 slots: Propulsion x1, Utility x1 4596 | -7/Factory | Identified exit to DSF 4596 | -7/Factory | Entered DSF 4612 | -7/DSF | Additional patrols routed to DSF 4889 | -7/DSF | Core integrity fell below 50% 4896 | -7/DSF | Core integrity fell below 20% 4900 | -7/DSF | Destroyed by X-57 Shotgunner with Shotgun Last Messages --------------- The unstable cave ceiling collapses. G-47 Trooper knocked back. Slug penetrates Wall. G-47 Trooper destroyed. The unstable cave ceiling collapses. G-47 Trooper knocked back. Hpw. Shotgun destroyed. Penetrated by Slug. Sensor Array destroyed. The unstable cave ceiling collapses. Flak Cannon destroyed. Penetrated by Slug. The unstable cave ceiling collapses. Penetrated by Slug. Flak Cannon destroyed. Critical hit (Burn: +37). Penetrated by Slug. Dropped Hcp. Storage Unit. Acquired Lgt. Deuterium Engine. Lgt. Deuterium Engine destroyed. Map ----- +----------------------------------------------------+ | | | | | | | | | | | | | | | | | | | | | | | | | | | ?????????????????????????????????????? | | ?????????????????????????????????????? | | ?????????????????????????????????????? | | ?????????????????????????###?????????? | | ?????????????????????????#""?????????? | | ????????????????????????##"####??????? | | ????????#########??????# #%% #??????? | | ????????# ######## #??????? | | ## #[[[# #[[[# ## "#??????? | | ^ "##"#???? | | ^ """#???? | | ##[[# ### C###[[[# "####???? | | ????# ???# ??#[[[# ##@ #??????? | | ????#???? ??####### # ##?????? | | ????????# ???????# #?????? | | ????????# ???????# # ! ##?????? | | ????????### ???????## # #??????? | | ??????????] ????????# ##??????? | | ?????????]] ????????## % ##??????? | | ?????????]] ???????#?## x^ ;#??????? | | ????????### ???##### ### h ###??????? | | ??????????# ???#!!!" ] %#??????? | | ?????????# ##!!!" Yg]!##?????? | | ???????? % g !H%%*#????? | | ???????? % ]*[]##????? | | ???????? % ##?????? | | ?????????# ##!!!#!!!# #??????? | | ?????????## ???#!!!#!!!## #??????? | | ????????????????###?####?######??????? | | ?????????????????????????????????????? | | ?????????????????????????????????????? | | ?????????????????????????????????????? | | ?????????????????????????????????????? | | ?????????????????????????????????????? | | ?????????????????????????????????????? | | ?????????????????????????????????????? | | ?????????????????????????????????????? | +----------------------------------------------------+ Best States ------------- Heat Dissipation 34 Energy Generation 14 Energy Capacity 250 Matter Stores 300 Matter Capacity 300 Sight Range 18 Robot Scan Range 14 Terrain Scan Density 10 Evasion (%) 50 Targeting Accuracy 8 Offensive Hacking 10 Item Schematics ----------------- Energy Well | -7/Factory | Hacked Robot Schematics ------------------ None Fabricated ------------ Nothing Alien Tech Used ----------------- None Achievements -------------- Dynamic Key More Dakka Please System Compromised Tourist Challenges ------------ None Game ------ Seed BiometalContainmentLink Manual? 0 Play Time 02:49:39 Cumulative 9.8 hours Start 2024.03.13 @ 17:55:09 End 2024.03.14 @ 19:24:16 Sessions 3 Manual Loads 0 Difficulty Rogue Special Mode None Game No. 2 Rogue 1 Adventurer 0 Explorer 1 Win Type - Total 0 Types 0/0/0/0/0/0/0/0/0 Lore% 10 Gallery% 6 Achievement% 7 Wizard Run 0 Options --------- Layout 1 ASCII 0 Keyboard 1 Movement Numpad Keybinds 0 Fullscreen 2 Font 32/SmallcapsGlow Map View 50x35 Zoom Use 0% Tactical HUD 0 Map Filters NONE Filters NONE Steam 1 RUN: fb7928ce-adb9-4818-acde-3581ec728225